bitfinex/quotes_ETHUSD_20241129
["timestamp","ask_amount","ask_price","bid_price","bid_amount"]
[1732860445581,0.7668,3588.9,3588.3,2.78683]
[1732860445739,4.0278413,3589.1,3588.3,2.78683]
[1732860445951,2.78658,3588.7,3588.4,0.06308528]
[1732860446160,2.78658,3588.7,3588.1,1.22454665]
[1732860446345,2.78658,3588.7,3588.2,0.0631315]
[1732860447142,2.8004876,3589.0,3588.2,0.0631315]
[1732860447343,6.5950962,3588.9,3588.2,0.0631315]
[1732860447538,6.3364,3588.9,3588.2,0.0631315]
[1732860448482,0.25898834,3588.8,3588.2,0.0631315]
[1732860448987,0.25898834,3588.8,3588.4,2.78673]
[1732860449171,0.25898834,3588.8,3588.6,0.7521]
[1732860449376,0.55,3588.9,3588.7,0.06301597]
[1732860449774,0.25898834,3589.0,3588.6,0.7521]
[1732860449940,0.25898834,3589.0,3588.7,0.06301597]
[1732860450282,0.25898834,3589.0,3588.4,0.7521]
[1732860450449,0.25898834,3589.0,3588.8,0.06299286]
[1732860450647,3.0,3589.1,3588.5,2.78662]
[1732860450844,0.25898834,3589.0,3588.9,0.06296976]
[1732860451075,0.25898834,3589.0,3588.5,2.78662]
[1732860451264,3.0,3589.1,3588.9,0.06296976]
[1732860451459,3.0,3589.1,3588.5,2.78662]
[1732860451460,0.55,3589.1,3588.5,2.81448305]
[1732860451675,0.80941029,3589.1,3589.0,0.06294666]
[1732860451871,0.25941029,3589.1,3588.7,2.78651]
[1732860452044,0.25941029,3589.3,3589.0,0.06294666]
[1732860452245,0.25941029,3589.3,3588.8,0.7844]
[1732860452494,0.25941029,3589.3,3589.1,0.06292356]
[1732860452711,0.7886,3589.6,3589.0,2.78621]
[1732860452712,0.25941029,3589.5,3589.0,2.78621]
[1732860452845,0.25941029,3589.5,3589.2,0.06230826]
[1732860453047,0.25941029,3589.4,3589.1,0.06233136]
[1732860453345,6.59539029,3589.4,3589.2,0.06230826]
[1732860453626,0.25941029,3589.3,3588.8,0.7844]
[1732860453873,0.25941029,3589.3,3588.8,1.48366903]
[1732860455466,0.25941029,3589.2,3588.8,1.48366903]
[1732860455669,0.25941029,3589.3,3588.8,1.48366903]
[1732860455832,0.25941029,3589.2,3588.8,1.48366903]
[1732860456031,0.25941029,3589.3,3588.8,1.48366903]
[1732860456264,0.25941029,3589.2,3588.8,1.48366903]
[1732860456473,0.25941029,3589.3,3588.8,4.27005903]
[1732860456675,0.25941029,3589.3,3588.8,4.29792021]
[1732860456861,0.25941029,3589.2,3588.8,4.27005903]
[1732860457059,0.25941029,3589.3,3588.8,4.29792025]
[1732860457794,0.25941029,3589.3,3588.9,0.42979202]
[1732860458359,0.25941029,3589.3,3589.0,0.06232896]
[1732860458873,0.55,3589.4,3589.0,0.06232896]
[1732860459068,0.80941029,3589.4,3589.0,0.06232896]
[1732860459305,0.55,3589.4,3589.0,0.06232896]
[1732860459461,0.80941029,3589.4,3589.0,0.06232896]
[1732860459661,0.25941029,3589.3,3589.0,0.06232896]
[1732860459877,0.25941029,3589.3,3588.8,0.7844]
[1732860460067,0.80941029,3589.4,3589.1,0.06228604]
[1732860460274,0.25941029,3589.3,3588.8,3.57083]
[1732860460474,3.04546029,3589.3,3589.2,0.06226294]
[1732860460718,3.04546029,3589.3,3588.8,0.7844]
[1732860460879,1.382,3589.4,3589.2,0.06226294]
[1732860461073,3.04584156,3589.3,3588.8,0.7844]
[1732860461274,0.25976156,3589.2,3588.8,0.7844]
[1732860464929,2.78622,3589.1,3588.8,0.7844]
[1732860465131,3.046033,3589.0,3588.3,2.78676]
[1732860465303,2.7863,3589.0,3588.3,4.123434]
[1732860465802,0.2597575,3588.9,3588.4,2.78675]
[1732860466003,0.2597575,3589.1,3588.4,2.78675]
[1732860466199,0.2597575,3589.0,3588.4,2.78675]
[1732860466399,0.2597575,3589.2,3588.4,2.78675]
[1732860466608,0.2597575,3589.1,3588.4,3.53383435]
[1732860466829,0.2597575,3589.2,3588.4,3.53383435]
[1732860467036,0.2597575,3589.1,3588.4,3.53383435]
[1732860467389,0.25982363,3589.0,3588.4,3.53383435]
[1732860467896,2.78623,3589.1,3588.4,3.53383435]
[1732860468927,2.78629,3589.0,3588.4,3.53383435]
[1732860469150,2.78641,3588.9,3588.4,0.74708435]
[1732860469430,0.7907,3588.8,3588.0,2.78705]
[1732860469628,3.57715,3588.8,3588.0,2.78701]
[1732860469796,2.78654,3588.7,3588.0,2.78701]
[1732860470390,2.78683,3588.3,3587.7,0.7746]
[1732860470640,3.55773,3588.3,3587.7,0.7746]
[1732860470940,3.55773,3588.3,3587.7,1.130798]
[1732860471306,0.25988151,3588.2,3587.7,1.130798]
[1732860471526,3.55773,3588.3,3587.7,1.130798]
[1732860471527,0.25988151,3588.1,3587.7,1.130798]
[1732860471698,0.25988151,3588.2,3587.7,1.130798]
[1732860471897,0.25988151,3588.1,3587.7,1.130798]
[1732860472194,0.25988151,3588.2,3587.7,1.130798]
[1732860472409,0.25988151,3588.1,3587.7,1.130798]
[1732860472745,0.25988151,3588.2,3587.7,1.130798]
[1732860472944,0.25988151,3588.1,3587.7,1.130798]
[1732860473246,0.55,3588.1,3587.8,0.06254676]
[1732860473475,0.55,3588.1,3587.5,0.8109]
[1732860473476,0.80988151,3588.1,3587.5,0.8109]
[1732860473619,3.3512476,3588.0,3587.9,0.06252364]
[1732860473944,0.80988151,3588.0,3587.2,3.58378]
[1732860474118,0.80988151,3588.0,3587.3,3.2718593]
[1732860474307,0.80988151,3588.0,3587.3,3.33452165]
[1732860474502,3.59698151,3588.0,3587.3,0.54696165]
[1732860474720,3.3371,3588.0,3587.3,0.54696165]
[1732860475326,0.55,3588.0,3587.4,0.02787204]
[1732860475544,0.80974478,3588.2,3587.5,2.78744]
[1732860475747,0.55,3588.0,3587.5,0.06261611]
[1732860475902,3.59667478,3588.2,3587.5,2.85001611]
[1732860476106,0.55,3588.0,3587.5,2.85001611]
[1732860476943,0.25974478,3588.1,3587.5,3.49618292]
[1732860477252,0.25974478,3588.1,3587.7,0.8021]
[1732860477451,0.55,3588.2,3587.7,0.8021]
[1732860477649,0.55,3588.2,3587.8,0.06310774]
[1732860477946,1.03060493,3588.3,3587.8,2.7872]
[1732860478252,0.25970493,3588.5,3588.2,2.78691]
[1732860478586,1.02760493,3588.9,3588.4,2.78674]
[1732860478755,0.7679,3588.9,3588.4,2.78674]
[1732860479105,1.02760493,3588.9,3588.5,0.06283545]
[1732860479454,0.7679,3588.9,3588.5,0.06283545]
[1732860479609,1.02760493,3588.9,3588.5,0.06283545]
[1732860479810,0.7679,3588.9,3588.5,0.06283545]
[1732860480009,1.02760493,3588.9,3588.5,0.06283545]
[1732860480246,0.7679,3588.9,3588.5,0.06283545]
[1732860480426,1.02760493,3588.9,3588.5,0.06283545]
[1732860480623,0.7679,3588.9,3588.5,0.06283545]
[1732860480955,3.81397493,3588.9,3588.5,0.06283545]
[1732860481137,0.25970493,3588.8,3588.5,0.06283545]
[1732860484063,0.7845,3589.2,3588.7,2.84918593]
[1732860484357,0.25970246,3589.3,3588.7,3.49257852]
[1732860484574,0.25970246,3589.4,3589.1,2.78621]
[1732860484855,0.25970246,3589.7,3589.2,0.06252927]
[1732860485424,0.25970246,3589.7,3589.3,2.78605]
[1732860485630,0.776,3589.8,3589.3,0.06250617]
[1732860485878,0.8304,3590.0,3589.2,0.8281]
[1732860486079,0.25970246,3589.9,3589.4,2.84845307]
[1732860486239,0.8304,3590.0,3589.4,2.78597]
[1732860486567,1.09010246,3590.0,3589.5,0.06245998]
[1732860486874,0.8304,3590.0,3589.5,0.06245998]
[1732860487166,1.09010246,3590.0,3589.5,0.06245998]
[1732860487349,3.87562246,3590.0,3589.5,0.06245998]
[1732860487560,3.04530246,3589.9,3589.5,0.06245998]
[1732860487764,0.25970246,3589.8,3589.2,3.61422]
[1732860487934,0.25970246,3589.8,3589.6,0.06200915]
[1732860488135,0.25970246,3589.8,3589.2,3.61422]
[1732860488763,0.25970246,3589.8,3589.3,0.06207844]
[1732860489065,0.25970246,3589.9,3589.2,3.61422]
[1732860489263,0.25970246,3589.9,3589.4,0.06205534]
[1732860489463,0.25970246,3589.9,3589.3,2.84812844]
[1732860489763,0.25970246,3589.9,3589.5,0.06203225]
[1732860489966,3.04529246,3589.9,3589.4,0.06205534]
[1732860490280,3.04529246,3589.9,3589.5,0.06203225]
[1732860490281,0.25970246,3589.8,3589.5,0.06203225]
[1732860490436,3.7924276,3589.7,3589.5,0.06203225]
[1732860490637,5.78596,3589.5,3588.7,3.59205]
[1732860490974,0.25949642,3589.4,3588.7,3.6199118]
[1732860491348,3.04548642,3589.4,3588.7,0.8056]
[1732860491586,3.04561642,3589.3,3588.7,0.8056]
[1732860491732,0.25949642,3589.2,3588.7,0.8056]
[1732860492083,3.82693642,3589.2,3588.5,2.78665]
[1732860492236,3.56744,3589.2,3588.5,2.78665]
[1732860492585,0.7813,3589.2,3588.5,5.5733]
[1732860492789,0.7813,3589.2,3588.5,6.26733445]
[1732860492986,0.7813,3589.2,3588.5,3.48068445]
[1732860493284,2.78621,3589.1,3588.5,0.69403445]
[1732860493438,2.78621,3589.1,3588.4,3.60675]
[1732860494566,0.7813,3589.2,3588.5,2.78665]
[1732860494770,2.78623,3589.1,3588.4,3.60675]
[1732860495341,0.25953138,3589.0,3588.4,3.60675]
[1732860495731,0.25953138,3589.0,3588.4,4.30082745]
[1732860496551,0.25953138,3589.0,3588.6,2.78654]
[1732860496878,0.25953138,3589.2,3588.4,4.30082745]
[1732860497051,2.78614,3589.2,3588.4,4.30082745]
[1732860497234,6.71110944,3589.8,3588.4,0.82]
[1732860497235,1.01743138,3589.1,3588.4,0.82]
[1732860497448,0.7579,3589.1,3588.1,3.34490604]
[1732860497650,0.7579,3589.1,3588.3,2.78681]
[1732860497843,2.78637,3588.9,3588.3,2.78681]
[1732860498096,0.25953138,3588.8,3588.3,2.78681]
[1732860498298,0.7579,3589.1,3588.3,3.15067915]
[1732860498299,3.54414,3589.1,3588.3,3.15067915]
[1732860498589,0.2596301,3589.0,3588.4,2.78675]
[1732860498774,3.0459201,3589.0,3588.3,0.34386915]
[1732860499098,0.2596301,3588.9,3588.3,0.34386915]
[1732860499390,0.2596301,3588.9,3588.3,3.13063915]
[1732860501053,0.2596301,3588.9,3588.5,2.78665]
[1732860501249,0.7579,3589.1,3588.5,5.5733]
[1732860501559,1.0175301,3589.1,3588.6,3.59989]
[1732860503251,0.2596301,3589.1,3588.7,2.84886728]
[1732860503574,0.2596301,3589.2,3588.7,2.84886728]
[1732860503898,0.2596301,3589.3,3588.7,2.84886728]
[1732860504105,0.2596301,3589.2,3588.7,2.84886728]
[1732860504258,0.2596301,3589.3,3588.7,2.84886728]
[1732860504453,0.259817,3589.2,3588.7,2.84886728]
[1732860504665,0.259817,3589.1,3588.7,2.84886728]
[1732860504871,3.61031,3589.4,3588.7,0.06234728]
[1732860504872,3.045887,3589.3,3588.7,0.06234728]
[1732860505071,0.259817,3589.2,3588.7,0.06234728]
[1732860505391,0.259817,3589.1,3588.6,3.59988]
[1732860505697,2.78607,3589.3,3588.6,3.59988]
[1732860505698,0.259817,3589.2,3588.7,0.0623841]
[1732860505858,0.259817,3589.1,3588.6,3.59984]
[1732860506059,0.259817,3589.3,3588.8,2.848741]
[1732860506337,0.259817,3589.2,3588.8,2.78638]
[1732860506615,0.259817,3589.1,3589.0,2.78628]
[1732860506797,0.259817,3589.3,3589.0,2.78628]
[1732860506971,0.259817,3589.2,3589.1,2.78621]
[1732860507175,0.259817,3589.6,3589.2,2.78608]
[1732860507377,0.259817,3589.5,3589.2,2.78608]
[1732860507606,0.259817,3589.4,3589.3,2.84827851]
[1732860507806,0.259817,3589.6,3589.3,2.84827851]
[1732860507972,0.259817,3589.5,3589.3,2.84827851]
[1732860508173,0.259817,3589.4,3589.3,2.84827851]
[1732860508589,0.259817,3589.6,3589.3,2.84827851]
[1732860508793,0.259817,3589.5,3589.3,2.84827851]
[1732860509092,0.259817,3589.4,3589.3,2.84827851]
[1732860509291,0.259817,3589.6,3589.3,2.84827851]
[1732860509495,0.259817,3589.5,3589.3,2.84827851]
[1732860509722,0.7899,3589.7,3589.4,2.78597]
[1732860509894,0.26010119,3589.6,3589.5,2.7859]
[1732860510233,0.26010119,3589.6,3589.5,2.84808232]
[1732860511412,0.26008368,3589.6,3589.5,2.84808232]
[1732860511918,0.26008368,3589.6,3589.5,0.06218232]
[1732860512715,0.26008368,3589.6,3589.5,2.7859]
[1732860512912,0.26008368,3589.6,3589.5,0.06199826]
[1732860513223,0.26008368,3589.6,3589.2,2.78612]
[1732860513420,2.78561,3589.9,3589.5,0.06199826]
[1732860513620,2.78561,3589.9,3589.2,2.78612]
[1732860513621,0.74118066,3589.8,3589.2,2.78612]
[1732860513853,0.26011399,3589.7,3589.2,2.78612]
[1732860514061,0.26011399,3589.6,3589.2,2.78612]
[1732860514343,0.26011399,3589.5,3589.3,0.06204444]
[1732860514527,0.26011399,3589.4,3589.2,2.78612]
[1732860514727,0.26011399,3589.8,3589.4,0.06202135]
[1732860514929,0.50707807,3589.8,3589.4,0.06202135]
[1732860515127,0.26011287,3589.7,3589.2,2.78612]
[1732860515325,0.26011287,3589.6,3589.5,0.06199826]
[1732860515549,0.26011287,3589.6,3589.2,2.78612]
[1732860515851,0.26011287,3589.5,3589.2,2.78612]
[1732860516138,0.26011287,3589.4,3589.2,2.78612]
[1732860516345,0.26011287,3589.8,3589.2,2.78612]
[1732860516507,0.26011287,3589.7,3589.2,2.78612]
[1732860516847,0.26011287,3589.6,3589.2,2.78612]
[1732860517048,0.26011287,3589.5,3589.2,2.78612]
[1732860517255,2.78561,3589.9,3589.2,2.78612]
[1732860517256,0.26011287,3589.4,3589.2,2.78612]
[1732860517402,0.26011287,3589.8,3589.2,2.78612]
[1732860517604,0.26011287,3589.7,3589.2,2.78612]
[1732860517919,0.26011287,3589.6,3589.2,2.78612]
[1732860518101,0.26011287,3589.5,3589.2,2.78612]
[1732860518296,2.78561,3589.9,3589.2,2.78612]
[1732860518297,0.26011287,3589.4,3589.3,0.06204444]
[1732860518501,0.26011287,3589.8,3589.2,2.78612]
[1732860518703,0.26011287,3589.7,3589.3,0.06204444]
[1732860518914,0.26011287,3589.6,3589.2,2.78612]
[1732860519155,0.26011287,3589.5,3589.4,0.06202135]
[1732860519360,0.26011287,3589.5,3589.2,2.78612]
[1732860519658,0.26011287,3589.4,3589.2,2.78612]
[1732860519955,2.78561,3589.9,3589.2,2.78612]
[1732860520114,0.26015954,3589.8,3589.2,2.78612]
[1732860520414,0.26015954,3589.7,3589.2,2.78612]
[1732860520619,0.26015954,3589.6,3589.2,2.78612]
[1732860520842,0.26015954,3589.5,3589.4,2.78598]
[1732860521587,0.26015954,3589.9,3589.7,2.7857]
[1732860521756,0.26015954,3589.8,3589.7,2.7857]
[1732860521956,0.26015954,3589.8,3589.7,3.417969]
[1732860522163,2.78508,3590.6,3589.8,0.7559]
[1732860522368,3.04527075,3590.5,3589.8,3.54154]
[1732860522534,3.56359,3590.3,3589.6,2.78581]
[1732860523061,0.67636242,3590.2,3589.6,2.78581]
[1732860523267,0.67636242,3590.1,3589.6,2.78581]
[1732860523592,0.67636242,3590.0,3589.6,2.78581]
[1732860523753,0.26013939,3589.9,3589.7,2.78574]
[1732860523947,0.26013939,3589.8,3589.7,2.78574]
[1732860524461,0.26013939,3589.8,3589.5,3.54179]
[1732860524668,0.26013939,3589.7,3589.5,3.54179]
[1732860524844,0.26013939,3589.6,3589.5,3.54179]
[1732860525285,2.78542,3590.2,3589.5,3.54179]
[1732860525577,0.67618478,3590.1,3589.5,3.54179]
[1732860525776,0.67618478,3590.0,3589.5,3.54179]
[1732860525933,0.67618478,3589.9,3589.5,0.7559]
[1732860526138,0.67618715,3589.8,3589.6,0.06161557]
[1732860526338,2.7995776,3590.1,3589.6,0.06161557]
[1732860526339,0.26007198,3589.7,3589.6,0.06161557]
[1732860526633,0.26007198,3589.7,3589.3,0.7669]
[1732860526836,0.41611517,3589.8,3589.4,2.78597]
[1732860527037,0.67619242,3589.7,3589.5,0.06163866]
[1732860527284,0.26008519,3589.6,3589.5,0.06163866]
[1732860527842,0.26008519,3589.6,3589.4,2.78598]
[1732860528145,0.26008519,3589.5,3589.4,2.78598]
[1732860529161,0.26008519,3589.5,3589.4,3.41988]
[1732860530075,0.81,3590.0,3589.4,3.41988]
[1732860530279,0.81,3590.0,3589.4,2.78598]
[1732860530795,3.59552,3590.0,3589.3,0.7669]
[1732860530968,1.23105667,3589.9,3589.1,2.7862]
[1732860531160,0.7856,3589.8,3589.1,2.7862]
[1732860531560,0.26017663,3589.5,3589.1,2.7862]
[1732860531800,0.26017663,3589.5,3589.1,3.423834]
[1732860532162,0.67661913,3589.4,3589.1,3.423804]
[1732860532371,0.26017663,3589.5,3589.1,3.423804]
[1732860532597,0.7856,3589.8,3589.1,3.423804]
[1732860532800,1.16413485,3590.1,3589.4,2.78597]
[1732860533002,6.59131,3590.2,3589.2,0.8284]
[1732860533179,7.75544485,3590.2,3589.4,2.78591]
[1732860533381,7.75544485,3590.2,3589.5,2.78587]
[1732860533581,6.59131,3590.2,3589.5,2.84765019]
[1732860534295,6.59131,3590.2,3589.6,2.78582]
[1732860534498,6.59131,3590.2,3589.6,2.8475771]
[1732860534671,0.0141276,3590.1,3589.6,0.0617571]
[1732860534875,0.0141276,3590.1,3589.4,2.78594]
[1732860535080,0.0141276,3590.1,3589.5,0.06178019]
[1732860535286,0.0141276,3590.1,3589.5,2.84767019]
[1732860535487,3.59131,3590.2,3589.6,2.78581]
[1732860535720,0.67728217,3590.1,3589.6,2.8475671]
[1732860535925,0.67728217,3590.0,3589.6,2.8475671]
[1732860536231,0.67728217,3589.9,3589.6,2.8475671]
[1732860536524,3.94941485,3590.4,3589.6,2.8475671]
[1732860536525,0.67728217,3589.8,3589.7,3.55883]
[1732860536730,0.67728217,3589.8,3589.7,0.834834]
[1732860536913,0.67728217,3589.8,3589.7,3.620574]
[1732860538337,0.67752808,3589.8,3589.7,3.620574]
[1732860538543,0.67752808,3589.8,3589.7,4.38431807]
[1732860538706,0.26058772,3589.8,3589.7,4.38431807]
[1732860540393,0.26058772,3589.8,3589.7,5.61537474]
[1732860541141,0.8173,3590.5,3589.9,2.78559]
[1732860541287,0.67745939,3590.4,3590.0,2.7855]
[1732860541631,0.67745939,3590.3,3590.1,0.06153124]
[1732860541991,0.67745939,3590.2,3590.1,0.06153124]
[1732860543732,0.26056822,3590.2,3590.1,0.06153124]
[1732860544029,0.26056822,3590.2,3590.1,2.78543]
[1732860544233,0.67745939,3590.2,3590.1,2.84696124]
[1732860544417,0.26056822,3590.2,3590.1,2.84696124]
[1732860544793,0.67745939,3590.2,3590.1,2.84696124]
[1732860545142,0.26056822,3590.2,3590.1,0.06153124]
[1732860545326,0.26056822,3590.2,3589.9,2.78555]
[1732860545530,0.26056822,3590.1,3589.9,2.78553]
[1732860545705,0.55,3590.3,3589.9,2.78553]
[1732860545911,0.26028427,3590.2,3589.9,2.78553]
[1732860546115,0.26028427,3590.1,3589.9,2.78557]
[1732860546338,0.55,3590.3,3589.9,2.78557]
[1732860546539,0.26025455,3590.2,3590.0,2.7855]
[1732860546699,0.26025455,3590.1,3589.8,2.78563]
[1732860546899,0.55,3590.3,3589.8,2.78563]
[1732860546900,0.26025455,3590.0,3589.8,2.78563]
[1732860547239,0.26023708,3589.9,3589.8,2.78563]
[1732860547388,0.96689117,3590.3,3589.8,2.78563]
[1732860547621,0.26023735,3590.2,3589.8,2.78563]
[1732860547796,0.26023735,3590.1,3589.8,2.78563]
[1732860548139,0.55,3590.3,3589.9,2.78558]
[1732860548313,0.26022335,3590.2,3589.9,2.84701588]
[1732860548515,0.26022335,3590.1,3589.9,2.84701588]
[1732860548710,0.26022335,3590.0,3589.9,2.84701588]
[1732860550341,0.26022335,3590.0,3589.9,0.06143588]
[1732860550507,0.26022335,3590.0,3589.7,0.7731]
[1732860550714,0.96635737,3590.3,3589.9,0.06143305]
[1732860550909,0.26025739,3590.2,3589.7,0.7731]
[1732860551111,0.26025739,3590.1,3590.0,0.06140997]
[1732860551469,0.26025739,3590.1,3589.7,0.7731]
[1732860551764,0.96635737,3590.3,3589.7,1.07460058]
[1732860551965,0.2602773,3590.2,3589.9,2.78559]
[1732860552120,0.2602773,3590.1,3589.9,2.78559]
[1732860552321,0.2602773,3590.0,3589.9,2.78559]
[1732860555265,0.2602773,3590.0,3589.8,2.78566]
[1732860555422,0.55,3590.3,3589.8,2.78566]
[1732860555622,0.26026372,3590.2,3589.8,2.78566]
[1732860555861,0.26026372,3590.1,3589.8,2.78566]
[1732860556159,0.26026372,3590.0,3589.8,2.78566]
[1732860556466,0.26026372,3589.9,3589.8,2.78566]
[1732860557547,0.55,3590.2,3589.8,2.78566]
[1732860557749,0.26023437,3590.1,3589.8,2.78566]
[1732860557963,0.26023437,3590.0,3589.8,2.78566]
[1732860558170,0.26023437,3589.9,3589.8,2.78566]
[1732860559561,0.26023437,3589.9,3589.7,0.7731]
[1732860559767,0.26023437,3589.8,3589.6,2.78576]
[1732860559973,0.7897,3589.9,3589.4,2.78592]
[1732860560149,0.26038718,3589.8,3589.3,2.78602]
[1732860560335,0.26038718,3589.7,3589.3,2.78602]
[1732860560565,0.26038718,3589.6,3589.3,2.78602]
[1732860560776,0.26038718,3589.5,3589.3,2.78602]
[1732860561079,0.41657972,3589.9,3589.5,2.7859]
[1732860561276,0.2603523,3589.8,3589.6,2.78582]
[1732860561446,0.41657972,3590.2,3589.8,2.78564]
[1732860561773,0.67692839,3590.1,3589.8,2.78564]
[1732860561975,0.26034867,3590.0,3589.8,2.78564]
[1732860562162,0.4165514,3590.3,3589.9,0.8101]
[1732860562361,0.67690298,3590.2,3590.0,2.78548]
[1732860562562,0.26035158,3590.1,3590.0,2.78548]
[1732860562877,0.26035158,3590.1,3589.9,0.8101]
[1732860563082,0.26035158,3590.0,3589.9,0.8101]
[1732860563435,0.26035158,3590.0,3589.9,3.65714289]
[1732860563640,0.26035158,3590.0,3589.9,4.30421153]
[1732860567050,0.55,3590.5,3589.9,4.30421153]
[1732860567250,0.55,3590.3,3589.9,4.30421153]
[1732860567450,0.2603897,3590.2,3590.1,2.78537]
[1732860567849,0.2603897,3590.2,3590.1,2.84677671]
[1732860569195,0.2603897,3590.2,3590.1,3.39677671]
[1732860570170,0.55,3590.3,3590.1,3.39677671]
[1732860570492,0.2604467,3590.2,3590.1,3.39677671]
[1732860571589,0.2604467,3590.2,3590.1,0.61140671]
[1732860572157,0.2604467,3590.2,3590.1,3.39683671]
[1732860572372,0.2604467,3590.2,3590.1,5.73159099]
[1732860572582,0.875,3590.6,3590.1,2.94616099]
[1732860572787,0.67719154,3590.5,3590.2,2.78536]
[1732860573097,0.26045807,3590.4,3590.3,2.78527]
[1732860573400,0.26045807,3590.4,3590.3,2.84657674]
[1732860574706,0.26045807,3590.4,3590.3,3.61027674]
[1732860577012,0.26045807,3590.4,3590.3,4.84133341]
[1732860577197,0.875,3590.6,3590.5,2.78512]
[1732860577583,0.875,3590.6,3590.5,4.07743725]
[1732860579242,0.875,3590.6,3590.5,2.84638058]
[1732860583134,0.875,3590.6,3590.5,0.06126058]
[1732860583495,0.875,3590.6,3590.5,2.78512]
[1732860583696,0.875,3590.6,3590.5,2.84602119]
[1732860587266,0.875,3590.6,3590.5,0.06090119]
[1732860587640,0.875,3590.6,3590.4,2.7852]
[1732860587868,0.875,3590.6,3590.5,0.06090119]
[1732860589468,1.13529316,3590.6,3590.5,0.06090119]
[1732860589834,1.13529316,3590.6,3590.3,2.78528]
[1732860590035,0.875,3590.6,3590.5,0.06090119]
[1732860590355,1.13525919,3590.6,3590.3,2.78528]
[1732860590556,0.875,3590.6,3590.5,0.06100023]
[1732860590754,1.13531779,3590.6,3590.3,2.78528]
[1732860590955,0.26031779,3590.5,3590.1,0.8137]
[1732860591174,0.26031779,3590.5,3590.0,2.7855]
[1732860591175,0.7979,3590.5,3590.0,2.7855]
[1732860591473,0.26034675,3590.4,3590.0,2.7855]
[1732860591632,0.26034675,3590.3,3590.0,2.7855]
[1732860591832,0.7979,3590.5,3589.8,4.76841667]
[1732860592072,0.26035506,3590.4,3590.1,2.78541]
[1732860592234,0.26035506,3590.3,3590.1,2.78541]
[1732860592432,0.7979,3590.5,3590.1,2.78541]
[1732860593483,0.7979,3590.5,3590.2,0.06106947]
[1732860593946,0.0141276,3590.4,3589.9,2.78558]
[1732860594133,3.58303,3590.5,3590.3,0.06104639]
[1732860594334,3.5557,3590.4,3589.7,2.78574]
[1732860595077,0.7705,3590.4,3589.8,2.78563]
[1732860595233,0.26050399,3590.3,3589.8,2.78563]
[1732860595431,0.26050399,3590.2,3589.8,2.78563]
[1732860595746,0.26050399,3590.1,3589.8,2.78563]
[1732860595943,0.41680933,3590.3,3589.8,2.78563]
[1732860596267,0.26050159,3590.2,3589.8,2.78563]
[1732860596601,0.26050159,3590.1,3589.8,2.78559]
[1732860596771,0.7705,3590.4,3589.6,4.01686667]
[1732860596947,0.2604993,3590.3,3589.9,2.78557]
[1732860597147,0.2604993,3590.2,3589.9,2.78557]
[1732860597350,1.18733103,3590.4,3589.9,2.78557]
[1732860597562,0.26048159,3590.3,3589.9,2.78557]
[1732860597887,0.26048159,3590.2,3589.9,2.78557]
[1732860598052,0.7705,3590.4,3589.9,2.78557]
[1732860598252,0.26046432,3590.3,3589.9,2.78557]
[1732860598494,0.26046432,3590.2,3589.9,2.78557]
[1732860598704,1.18733103,3590.4,3589.9,2.78557]
[1732860598986,0.26047007,3590.3,3589.9,2.78557]
[1732860599144,0.26047007,3590.2,3589.9,2.78557]
[1732860599344,0.7705,3590.4,3589.9,2.78557]
[1732860599581,0.26046773,3590.3,3589.9,2.78557]
[1732860599786,0.26046773,3590.2,3589.9,2.78557]
[1732860600083,1.18733103,3590.4,3589.9,2.78557]
[1732860600257,0.26044931,3590.3,3589.9,2.78557]
[1732860600456,0.26044931,3590.2,3589.9,2.78557]
[1732860600665,0.7705,3590.4,3589.7,2.7857]
[1732860600861,0.26041332,3590.3,3589.7,2.7857]
[1732860601064,0.26041332,3590.2,3589.7,2.7857]
[1732860601377,0.26041332,3590.1,3589.7,2.7857]
[1732860601543,0.809,3590.0,3589.3,2.786]
[1732860601745,0.809,3589.8,3588.9,1.98925667]
[1732860601983,0.26037796,3589.7,3589.0,2.78625]
[1732860602287,0.809,3589.8,3589.0,2.78625]
[1732860602489,0.26031123,3589.7,3589.3,2.78605]
[1732860602678,0.809,3589.8,3589.3,2.78605]
[1732860602879,0.26031556,3589.7,3589.1,2.78617]
[1732860603077,1.07291556,3589.6,3588.7,0.8054]
[1732860603297,0.8126,3589.4,3588.6,2.7866]
[1732860603591,0.8126,3589.4,3588.7,1.23105667]
[1732860603801,0.8126,3589.4,3588.5,3.59204]
[1732860603948,0.8126,3589.4,3588.5,0.8054]
[1732860603949,3.04622004,3589.3,3588.5,0.8054]
[1732860604158,2.78606,3589.3,3588.5,0.8054]
[1732860604361,0.8297,3589.1,3588.3,0.34386915]
[1732860604591,1.08965221,3589.1,3588.4,0.43618058]
[1732860604803,0.8297,3589.1,3588.4,0.43618058]
[1732860605698,3.87571182,3589.1,3588.2,4.01793667]
[1732860605901,3.61593,3589.1,3588.2,4.01793667]
[1732860606104,0.25977799,3589.0,3588.2,4.01793667]
[1732860606256,3.61593,3589.1,3588.2,4.01793667]
[1732860606455,2.7863,3589.0,3588.2,4.01793667]
[1732860606660,2.7863,3589.0,3588.2,3.5229672]
[1732860606969,3.5598,3588.9,3588.0,1.23105667]
[1732860607175,0.7734,3588.9,3588.1,0.8165]
[1732860607493,0.7734,3588.9,3588.2,4.01796667]
[1732860607890,0.7734,3588.9,3588.2,1.23105667]
[1732860608419,3.55977,3588.9,3588.3,0.06194702]
[1732860608602,2.78644,3588.8,3588.3,0.06194702]
[1732860608808,2.78644,3588.8,3588.0,4.01811667]
[1732860608997,2.78644,3588.8,3588.4,0.06192391]
[1732860609322,2.78644,3588.8,3588.1,3.54847867]
[1732860609635,2.78661,3588.6,3588.0,1.23105667]
[1732860609920,2.78661,3588.6,3588.2,0.06197013]
[1732860610079,2.78661,3588.6,3588.1,0.06199324]
[1732860610282,0.7992,3588.4,3588.3,0.06194702]
[1732860610520,0.7992,3588.4,3588.2,0.06197013]
[1732860610704,0.7992,3588.8,3588.3,0.06194702]
[1732860611080,0.7992,3588.8,3588.0,4.01808667]
[1732860611281,3.58565,3588.8,3588.4,0.06192391]
[1732860611511,3.58565,3588.8,3588.0,4.01808667]
[1732860611710,3.58565,3588.8,3588.5,0.0619008]
[1732860611887,4.222844,3588.8,3588.0,2.78703]
[1732860612085,4.222844,3588.8,3587.9,1.23105667]
[1732860612086,0.7992,3588.8,3588.6,0.0622883]